Cogmind - Beta 16.1 @@@ ROGUE MODE // 2026.03.04 @ 18:03:38 Player: Wulphy Result: Self-destructed Performance ------------- Evolutions (7) 3500 Regions Visited (18) 3600 Robots Destroyed (96) 480 Value Destroyed (3628) 3628 Prototype IDs (75) 1500 Alien Tech Used (2) 400 Bonus (3125) 3125 TOTAL SCORE: 16233 Bonus ------- High Alert Combat Kills 79 Follower Combat Kills 946 Registered with UFD 300 Met Optimus in HQ 500 Met Zhirov 300 Met Warlord at Base 500 MAIN.C Attacked Warlord 500 Cogmind --------- Core Integrity 313/1300 Matter 300/300 Energy 45/100 System Corruption 27% Temperature Cool (0) Movement Hovering (70) Location -3/Research Parts ------- > --- POWER (2) -------- (None) > --- PROPULSION (7) --- Gyrokinetic Inverter > --- UTILITY (10) ----- Enhanced Optical Array Experimental Terrain Scan Processor > --- WEAPON (2) ------- (None) > --- INVENTORY (5) ---- Experimental Energy Well (600) Weapon Mount Improved Trap Extractor (2/6 Vortex) Dimensional Node Initializer Scatter Rocket Array Peak State ------------ > --- POWER ------------ Vortex Chain Reactor > --- PROPULSION ------- Combat Airjet Gyrokinetic Inverter Combat Gravmag System Improved Antigrav System Improved Antigrav System Cooled Antigrav System Cooled Antigrav System > --- UTILITY ---------- Large Storage Unit Long-range Terrain Scanner Experimental Terrain Scan Processor Advanced Transmission Jammer Advanced Reaction Control System Advanced EM Shield Improved Hacking Suite Advanced Hacking Suite Ghost Barrier A0-MCA's Component Scanner > --- WEAPON ----------- Companion Sword > --- INVENTORY -------- Experimental Energy Well Improved Matter Compressor Advanced Sensor Array Seismic Detector Weapon Mount Jamming Amplifier Advanced ECM Suite Experimental Phase Shifter Improved Trap Extractor Dimensional Node Initializer Transdimensional Reconstructor Vortex Driver Scatter Rocket Array Signal Generator [Rating: 151] Favorites ----------- Power Light Antimatter Reactor Engine Subdweller Power Source Power Core Micro Fission Core Reactor Light Antimatter Reactor Propulsion Gyrokinetic Inverter Treads Light Treads Leg Myomer Leg Wheel Compact Wheel Hover Unit Gyrokinetic Inverter Flight Unit Makeshift Flight Unit Utility Large Storage Unit Device Advanced Sensor Array Storage Large Storage Unit Processor Advanced Signal Interpreter Hackware Improved Hacking Suite Protection Experimental Propulsion Shielding Weapon Companion Sword Energy Gun Medium Laser Energy Cannon Subdweller Beam Cannon Ballistic Gun Subdweller Machine Gun Launcher Scatter Rocket Array Special Weapon Mining Laser Slashing Weapon Companion Sword Piercing Weapon Makeshift Spear Special Melee Weapon Improved Datajack Build | -11 -10 -10 -7 -5 -5 -5 -5 -5 -5 -4 -4 -4 -4 -4 -4 -4 -3 -3 ------- Run | Yrd Mat Sub Scr Fac Was Fac Upp Upp Zhi Pro Fac Was Fac Upp Upp War Pro Res Slots Evolved 14 | . . . . 10 . . . . . . 2 . . . . . . 2 Power 1 | . . . . 1 . . . . . . . . . . . . . . Propulsion 5 | . . . . 5 . . . . . . . . . . . . . . Utility 8 | . . . . 4 . . . . . . 2 . . . . . . 2 Weapon . | . . . . . . . . . . . . . . . . . . . Parts Attached 152 | 7 2 13 6 38 1 16 1 3 4 7 7 1 4 4 4 6 2 26 Power 19 | 1 1 2 2 6 . 1 . . . 1 1 . . . 2 1 . 1 Engine 9 | 1 1 2 2 2 . . . . . . . . . . 1 . . . Core 4 | . . . . 2 . 1 . . . . . . . . 1 . . . Reactor 6 | . . . . 2 . . . . . 1 1 . . . . 1 . 1 Propulsion 59 | 2 . 2 1 17 . 10 . . 1 2 2 . 1 1 1 1 1 17 Treads 5 | 2 . . . 1 . . . . . . . . . . . . . 2 Leg 11 | . . . . 3 . . . . . . . . . . . . . 8 Wheel 7 | . . 2 1 3 . . . . . 1 . . . . . . . . Hover 34 | . . . . 10 . 9 . . 1 . 2 . 1 1 1 1 1 7 Flight 2 | . . . . . . 1 . . . 1 . . . . . . . . Utility 58 | 2 1 2 2 12 1 5 1 3 3 4 3 1 3 3 1 3 1 7 Device 33 | 1 . 2 . 6 . 5 . 2 . 4 1 1 2 2 1 2 1 3 Storage 6 | 1 1 . 2 . . . . . 2 . . . . . . . . . Processor 11 | . . . . 4 1 . . 1 . . 2 . . 1 . . . 2 Hackware 4 | . . . . 1 . . . . . . . . 1 . . 1 . 1 Protection 4 | . . . . 1 . . 1 . 1 . . . . . . . . 1 Artifact . | . . . . . . . . . . . . . . . . . . . Weapon 16 | 2 . 7 1 3 . . . . . . 1 . . . . 1 . 1 Energy Gun 3 | 2 . 1 . . . . . . . . . . . . . . . . Energy Cannon 4 | . . 3 . . . . . . . . . . . . . . . 1 Ballistic Gun 1 | . . 1 . . . . . . . . . . . . . . . . Ballistic Cannon . | . . . . . . . . . . . . . . . . . . . Launcher 2 | . . . . 2 . . . . . . . . . . . . . . Special Weapon 2 | . . 1 . . . . . . . . . . . . . 1 . . Impact Weapon . | . . . . . . . . . . . . . . . . . . . Slashing Weapon 1 | . . . 1 . . . . . . . . . . . . . . . Piercing Weapon 1 | . . 1 . . . . . . . . . . . . . . . . Special Melee Weapon 2 | . . . . 1 . . . . . . 1 . . . . . . . Unidentified Prototypes 9 | . . . 1 1 . . 1 . 4 1 . . . . . . . 1 Corrupted Parts 1 | . . . . . . . . . . 1 . . . . . . . . System Corruption 5 | . . . . . . . . . . 5 . . . . . . . . Parts Lost 61 | . 2 4 . 7 . 3 . 1 . 2 1 . 1 3 3 . . 34 Power 7 | . 1 1 . . . . . . . . . . . 2 1 . . 2 Propulsion 31 | . . 2 . 5 . 3 . 1 . 1 . . . 1 1 . . 17 Utility 19 | . . . . 2 . . . . . 1 1 . 1 . 1 . . 13 Weapon 4 | . 1 1 . . . . . . . . . . . . . . . 2 Highest Loss Streak 13 | . 2 2 . 3 . 1 . 1 . 1 1 . 1 2 1 . . 13 To Critical Strikes . | . . . . . . . . . . . . . . . . . . . Average Backups 14 | 3 7 11 19 17 11 10 10 10 11 12 13 14 14 14 14 13 13 13 Power . | . . 1 . 1 1 . . . . . 1 2 1 1 1 . . . Propulsion 1 | 1 2 3 2 3 2 2 1 1 . . . . . . . . 1 . Utility 6 | . 1 1 7 7 5 5 6 6 7 9 7 8 9 8 9 8 8 8 Weapon 2 | 1 3 5 6 2 1 . 1 1 1 1 1 1 1 1 1 1 1 1 Tool/Special . | . . . . . . . . . . . . . . . . . . . Unused Backups 52 | . . 4 6 25 . 5 1 . . 1 . . . . . 4 . 6 Power 6 | . . . 1 3 . 1 . . . . . . . . . 1 . . Propulsion 12 | . . 2 1 5 . 3 . . . . . . . . . 1 . . Utility 17 | . . 1 . 9 . 1 1 . . . . . . . . . . 5 Weapon 12 | . . 1 4 6 . . . . . . . . . . . 1 . . Tool/Special 5 | . . . . 2 . . . . . 1 . . . . . 1 . 1 Average Slot Usage (%) 90 | . 98 99 90 87 94 93 94 88 89 92 88 94 93 85 86 89 88 81 Engine 5 | . 12 13 14 7 . . . . . . . . . . 3 1 . . Core 2 | . . . . 1 5 5 11 11 11 9 . . . . 2 . . . Reactor 2 | . . . . 1 5 4 . . . 1 9 10 10 4 . 3 5 3 Treads 3 | . 28 19 5 1 . . . . . . . . . . . . . . Wheel 5 | . . 8 22 8 . . . . . . . . . . . . . . Hover 22 | . . . . 22 41 40 41 35 36 39 32 36 36 33 33 36 35 25 Device 11 | . 14 14 5 8 11 10 11 11 10 10 10 15 10 17 13 19 21 16 Storage 7 | . 14 14 14 5 5 5 5 5 5 5 5 5 5 5 5 5 5 3 Processor 6 | . . . . 11 11 11 11 11 9 5 9 10 9 7 10 6 5 8 Hackware 5 | . . . . 4 5 5 5 5 5 5 5 5 9 10 10 10 10 12 Energy Cannon 3 | . . 10 12 . . . . . . . . . . . . . . . Ballistic Gun 3 | . . 5 12 . . . . . . . . . . . . . . . Slashing Weapon 3 | . . . 1 5 5 5 5 5 5 5 5 5 5 5 5 5 5 3 Peak Build Rating 151 | 7 7 13 24 94 92 96 90 89 96 99 115 114 122 116 107 135 136 151 Average Rating 72 | 6 6 9 16 76 91 90 88 83 87 92 106 113 114 103 98 126 130 129 On Entrance 78 | . 7 6 12 24 91 92 89 89 83 96 90 113 114 109 98 104 135 130 Avg Prop Armor Cover (%) 6 | . . 13 14 10 10 6 . . . 3 1 1 1 1 1 1 . 12 Naked Turns . | . . . . . . . . . . . . . . . . . . . Heaviest Build 232 | 12 27 38 221 232 43 47 46 47 48 48 67 56 56 55 50 68 67 81 Greatest Support 175 | 40 40 40 26 73 59 74 63 63 67 67 70 59 61 61 72 74 75 175 Greatest Overweight (x) 8 | . . 2 8 6 . 1 . . . . 1 . . . 1 . . 1 Average Overweight (x) . | . . 1 4 . . . . . . . . . . . . . . . Largest Inventory Capacity 35 | 8 15 15 35 35 15 15 15 15 15 15 15 15 15 15 15 15 15 15 Average Capacity 17 | 7 13 15 26 24 15 15 15 15 15 15 15 15 15 15 15 15 15 14 Most Carried 35 | 6 8 15 35 35 15 15 15 15 15 15 15 15 15 15 15 15 15 15 Average Carried 16 | 3 7 11 22 22 14 14 14 14 14 14 14 15 14 14 14 14 14 14 Final Capacity 35 | 8 15 15 35 15 15 15 15 15 15 15 15 15 15 15 15 15 15 5 Final Carried 35 | 6 7 15 35 15 15 15 15 15 15 14 15 15 15 14 15 15 15 5 Class Distribution -------------------- 30% | Mutant 26% | Hacker-Mutant 15% | Hauler-Mutant 14% | Trapper-Mutant 10% | Scavenger-Mutant Dominant Class ---------------- Mutant | -10/Materials Mutant | -10/Subcaves Hauler-Mutant | -7/Scraptown Hauler-Mutant | -5/Factory Mutant | -5/Waste Mutant | -5/Factory Mutant | -5/Upper Caves Mutant | -5/Upper Caves Trapper-Mutant | -5/Zhirov Trapper-Mutant | -4/Proximity Caves Trapper-Mutant | -4/Factory Trapper-Mutant | -4/Waste Hacker-Mutant | -4/Factory Hacker-Mutant | -4/Upper Caves Hacker-Mutant | -4/Upper Caves Hacker-Mutant | -4/Warlord Hacker-Mutant | -3/Proximity Caves Hacker-Mutant | -3/Research Resources | -11 -10 -10 -7 -5 -5 -5 -5 -5 -5 -4 -4 -4 -4 -4 -4 -4 -3 -3 ----------- Run | Yrd Mat Sub Scr Fac Was Fac Upp Upp Zhi Pro Fac Was Fac Upp Upp War Pro Res Matter Collected 4059 | 270 . 194 62 742 102 249 88 212 . 641 . 130 70 141 145 5 155 853 Remotely . | . . . . . . . . . . . . . . . . . . . Salvage Created 5055 | 124 . 276 . 1531 . 657 . 331 . 285 . 236 100 37 147 . 110 1221 Parts 230 | 13 . 16 . 68 . 29 . 12 . 5 . 3 9 1 5 . 10 59 Haulers Intercepted 8 | . . . . 3 . 3 . . . 1 . . . . . . . 1 Recyclers Shooed . | . . . . . . . . . . . . . . . . . . . Parts Field Recycled . | . . . . . . . . . . . . . . . . . . . Retrieved Matter . | . . . . . . . . . . . . . . . . . . . Parts Self-Destructed 45 | . . 7 . . . . . 5 . 6 . . . 3 . . 24 . Prevented 12 | . . . . . . . . . . 8 . . . 1 1 . 2 . Parts Restored . | . . . . . . . . . . . . . . . . . . . Kills | -11 -10 -10 -7 -5 -5 -5 -5 -5 -5 -4 -4 -4 -4 -4 -4 -4 -3 -3 ------- Run | Yrd Mat Sub Scr Fac Was Fac Upp Upp Zhi Pro Fac Was Fac Upp Upp War Pro Res Combat Hostiles Destroyed 60 | . . 7 . 19 . 5 . 1 . 2 . . 3 . . . 4 19 Melee 22 | . . . . 9 . 3 . 1 . 2 . . . . . . . 7 Guns 2 | . . 2 . . . . . . . . . . . . . . . . Cannons 6 | . . 4 . . . . . . . . . . . . . . . 2 AOE 29 | . . . . 10 . 2 . . . . . . 3 . . . 4 10 Classes Destroyed 16 | 3 . 2 . 7 . 2 . 2 . . . . . . . . . . Worker 6 | 1 . . . 1 . 2 . . . . . . 1 . . . . 1 Builder 4 | . . . . . . 1 . . . . . . 3 . . . . . Tunneler 2 | 2 . . . . . . . . . . . . . . . . . . Hauler 8 | . . . . 3 . 3 . . . 1 . . . . . . . 1 Recycler 9 | 1 . . . 4 . 1 . . . . . . . . . . . 3 Minesweeper 5 | . . . . . . . . 2 . 1 . . . 1 1 . . . Operator 1 | . . . . . . 1 . . . . . . . . . . . . Swarmer 21 | . . . . 8 . 2 . . . 1 . . 3 . . . 4 3 Grunt 11 | . . . . 4 . . . 2 . 1 . . . . . . . 4 Brawler 2 | . . . . 1 . . . . . . . . . . . . . 1 Sentry 4 | . . . . 2 . . . . . . . . . . . . . 2 Hunter 1 | . . . . 1 . . . . . . . . . . . . . . Programmer 15 | . . . . 3 . 3 . . . . . . . . . . . 9 Cobbler 1 | . . 1 . . . . . . . . . . . . . . . . Subdweller 7 | . . 7 . . . . . . . . . . . . . . . . Decomposer 1 | . . . . . . . . . . . . . . . 1 . . . Packrat 1 | . . . . . . . . . . . . . . . 1 . . . Samaritan 4 | . . . . . . . . 3 . . . . . . 1 . . . Best Kill Streak 8 | 2 . 1 . 7 . 3 . 2 . 2 . . 6 1 1 . 4 8 Combat Bots Only 6 | . . 1 . 5 . 3 . 1 . 1 . . 3 . . . 4 6 Max Kills in Single Turn 6 | 1 . 1 . 3 . 2 . 1 . 1 . . 6 1 1 . 4 3 Gunslinging . | . . . . . . . . . . . . . . . . . . . Exploded 4 | . . . . 3 . 2 . . . . . . 3 . . . 4 3 Melee 1 | . . . . 1 . 1 . 1 . 1 . . . . . . . 1 Uniques/NPCs Destroyed . | . . . . . . . . . . . . . . . . . . . Combat | -11 -10 -10 -7 -5 -5 -5 -5 -5 -5 -4 -4 -4 -4 -4 -4 -4 -3 -3 -------- Run | Yrd Mat Sub Scr Fac Was Fac Upp Upp Zhi Pro Fac Was Fac Upp Upp War Pro Res Hostile Shots Fired 755 | . 37 29 . 87 . 64 . 48 . 17 42 . 38 30 8 . 10 345 Missed 256 | . 5 7 . 22 . 24 . 21 . 6 17 . 24 13 3 . 8 106 Hits 499 | . 32 22 . 65 . 40 . 27 . 11 25 . 14 17 5 . 2 239 Melee 3 | . . . . 3 . . . . . . . . . . . . . . Projectile 496 | . 32 22 . 62 . 40 . 27 . 11 25 . 14 17 5 . 2 239 AOE 1 | . . 1 . . . . . . . . . . . . . . . . Critical Strikes 32 | . 1 . . 1 . 2 . . . . . . 1 . . . . 27 Part Disruptions 2 | . . . . . . . . . . . . . . . . . . 2 Damage Taken 9807 | . 436 569 . 1326 . 833 . 362 . 249 713 8 241 404 149 . 49 4468 Core 2091 | . 62 177 . 217 . 205 . 48 . 129 161 8 80 85 . . . 919 Absorbed by Shields 17 | . . . . . . . . . . . . . . . . . 17 . Redirected to Shielding 133 | . . . . . . . . . . 54 12 . 67 . . . . . Ignored by Resistances 1060 | . . . . . . . . . . . . . . . . . . 1060 Regen/Repaired (Parts) 123 | . . . . . 3 14 . . . . . . 48 . . 58 . . Core Remaining (%) 53 | 100 . . 4 . . . . . . 40 . . . . . . 70 . Volleys Fired 143 | 5 7 95 . 7 . 1 . . . . . . 1 . . . 1 26 Largest 2 | 2 2 2 . 1 . 1 . . . . . . 1 . . . 1 1 Hottest 120 | 90 90 120 . 50 . 50 . . . . . . 50 . . . 50 100 Shots Fired 176 | 10 14 118 . 7 . 1 . . . . . . 1 . . . 1 24 Gun 45 | 10 14 21 . . . . . . . . . . . . . . . . Cannon 67 | . . 52 . . . . . . . . . . . . . . . 15 Launcher 19 | . . . . 7 . 1 . . . . . . 1 . . . 1 9 Special 45 | . . 45 . . . . . . . . . . . . . . . . Kinetic 15 | . . 11 . 4 . . . . . . . . . . . . . . Thermal 131 | 10 14 107 . . . . . . . . . . . . . . . . Explosive 15 | . . . . 3 . 1 . . . . . . 1 . . . 1 9 Electromagnetic . | . . . . . . . . . . . . . . . . . . . Entropic 15 | . . . . . . . . . . . . . . . . . . 15 Robot Hit Streak 13 | 6 10 13 . 1 . . . . . . . . . . . . . 3 Robot Miss Streak 6 | . 2 1 . 3 . . . . . . . . . . . . . 6 Penetration Max . | . . . . . . . . . . . . . . . . . . . Secondary Targets . | . . . . . . . . . . . . . . . . . . . Shots Hit Robots 275 | 6 9 42 . 50 . 27 . 18 . 15 4 19 1 2 7 . . 75 Core Hits 199 | 5 2 12 . 46 . 20 . 3 . 6 1 2 10 . 2 . 8 82 Critical Kills 1 | . . 1 . . . . . . . . . . . . . . . . Critical Parts Destroyed . | . . . . . . . . . . . . . . . . . . . Critical Strikes 15 | . . 1 . 8 . . . . . . . . . . . . . 6 Meltdown 1 | . . 1 . . . . . . . . . . . . . . . . Sunder 2 | . . . . . . . . . . . . . . . . . . 2 Melee Attacks 381 | . . 3 . 79 . 50 1 25 . 22 18 19 26 10 16 . . 112 Impact . | . . . . . . . . . . . . . . . . . . . Slashing 375 | . . . . 77 . 50 1 25 . 22 17 19 26 10 16 . . 112 Piercing 3 | . . 3 . . . . . . . . . . . . . . . . Sneak Attacks 41 | . . 2 . 8 . 8 . 8 . 2 1 . 1 2 6 . . 3 Combat Hostiles . | . . . . . . . . . . . . . . . . . . . Follow-up Attacks 4 | . . . . . . . . . . . . . . . . . . 4 Damage Inflicted 14553 | 74 110 798 . 2961 . 1780 . 1137 . 745 145 695 418 172 556 . 143 4819 Guns 431 | 74 107 250 . . . . . . . . . . . . . . . . Cannons 977 | . . 479 . . . . . . . . . . . . . . . 498 Explosions 3052 | . . . . 718 . 334 . . . . . . 320 . . . 143 1537 Melee 10089 | . . 69 . 2243 . 1446 . 1137 . 745 145 695 98 172 556 . . 2783 Ramming 4 | . 3 . . . . . . . . . . . . . . . . 1 Kinetic 502 | . . 139 . 363 . . . . . . . . . . . . . . Thermal 771 | 74 107 590 . . . . . . . . . . . . . . . . Explosive 2689 | . . . . 355 . 334 . . . . . . 320 . . . 143 1537 Electromagnetic . | . . . . . . . . . . . . . . . . . . . Impact . | . . . . . . . . . . . . . . . . . . . Slashing 10020 | . . . . 2243 . 1446 . 1137 . 745 145 695 98 172 556 . . 2783 Piercing 69 | . . 69 . . . . . . . . . . . . . . . . Entropic 498 | . . . . . . . . . . . . . . . . . . 498 Highest Corruption 27 | . . . . 7 7 10 10 11 11 16 3 3 3 4 5 5 . 27 Average Corruption 7 | . . . . 6 7 8 10 10 11 12 2 3 3 3 4 5 . 7 Corruption Purged . | . . . . . . . . . . . . . . . . . . . Corruption Blocked . | . . . . . . . . . . . . . . . . . . . Effects 254 | . . . . 39 5 34 12 25 3 40 1 3 8 33 23 . . 28 Message Errors 65 | . . . . 13 . 8 2 10 . 6 . . 3 12 5 . . 6 Matter Fused 69 | . . . . 10 1 10 5 6 1 13 1 1 1 8 6 . . 6 Heat Flow Errors 26 | . . . . 2 2 1 1 5 . 4 . 1 2 3 3 . . 2 Energy Discharges 18 | . . . . . 1 3 . . . 7 . . 2 2 . . . 3 Parts Rejected 2 | . . . . . . . . . . . . . . . . . . 2 Parts Fused 5 | . . . . 2 . 1 . . . . . . . . 2 . . . Data Loss (minor) 42 | . . . . 7 . 7 4 2 2 4 . . . 7 5 . . 4 Data Loss (major) 12 | . . . . 2 . 3 . . . 3 . 1 . 1 2 . . . Alerts 11 | . . . . 3 1 1 . 1 . 2 . . . . . . . 3 Misdirections 2 | . . . . . . . . 1 . 1 . . . . . . . . Weapon Failures 2 | . . . . . . . . . . . . . . . . . . 2 Overload Shots . | . . . . . . . . . . . . . . . . . . . Overflow Damage 1686 | . . . . 208 . 101 . 598 . 62 41 . 83 92 231 . . 270 Projectiles 135 | . . . . . . . . . . . . . . . . . . 135 Explosions 58 | . . . . 52 . . . . . . . . . . . . . 6 Melee 1493 | . . . . 156 . 101 . 598 . 62 41 . 83 92 231 . . 129 Knockbacks . | . . . . . . . . . . . . . . . . . . . Impact . | . . . . . . . . . . . . . . . . . . . Kinetic . | . . . . . . . . . . . . . . . . . . . Secondary . | . . . . . . . . . . . . . . . . . . . Self-Inflicted Damage 151 | . . . . 16 . . . . . . . . . . . . 33 102 Shots 8 | . . . . 1 . . . . . . . . . . . . 2 5 Rammed 2 | . 2 . . . . . . . . . . . . . . . . . Targets Rammed 3 | . 2 . . . . . . . . . . . . . . . . 1 Kicked 1 | . . . . . . . . . . . . . . . . . . 1 Crushed . | . . . . . . . . . . . . . . . . . . . Highest Temperature 327 | 60 267 27 . 299 243 314 206 203 . 265 248 299 266 250 179 135 11 327 Average Temperature 78 | 28 131 18 . 84 142 110 86 76 . 74 96 161 106 119 65 50 4 52 Received Heat Transfer 1195 | . 273 54 . 153 . . . 39 . 36 66 . 18 30 9 . 4 513 Effects 4 | . 1 . . 1 . . . . . 1 . . 1 . . . . . Energy Bleed 3 | . . . . 1 . . . . . 1 . . 1 . . . . . Interference 1 | . 1 . . . . . . . . . . . . . . . . . Siege Activations . | . . . . . . . . . . . . . . . . . . . Martial Activations . | . . . . . . . . . . . . . . . . . . . Shielding Activations . | . . . . . . . . . . . . . . . . . . . Robots Disrupted 3 | . . . . . . . . . . 1 1 . . . 1 . . . Combat Hostiles . | . . . . . . . . . . . . . . . . . . . Robots Corrupted . | . . . . . . . . . . . . . . . . . . . Combat Hostiles . | . . . . . . . . . . . . . . . . . . . Parts Fried . | . . . . . . . . . . . . . . . . . . . Impact Corruptions . | . . . . . . . . . . . . . . . . . . . Robots Melted 1 | . . 1 . . . . . . . . . . . . . . . . Combat Hostiles 1 | . . 1 . . . . . . . . . . . . . . . . Parts Melted 3 | . . 3 . . . . . . . . . . . . . . . . Heat Transferred 1704 | 210 273 1221 . . . . . . . . . . . . . . . . Parts Sabotaged . | . . . . . . . . . . . . . . . . . . . Parts Stolen . | . . . . . . . . . . . . . . . . . . . Parts Stripped . | . . . . . . . . . . . . . . . . . . . Power Chain Reactions . | . . . . . . . . . . . . . . . . . . . Alert | -11 -10 -10 -7 -5 -5 -5 -5 -5 -5 -4 -4 -4 -4 -4 -4 -4 -3 -3 ------- Run | Yrd Mat Sub Scr Fac Was Fac Upp Upp Zhi Pro Fac Was Fac Upp Upp War Pro Res Maximum Alert Level 2 | . . . . 2 1 2 . . . . . . . . . . . 1 Low Security (%) 68 | 100 100 . . 79 67 5 . . . . 100 100 100 . . . . 68 Level 1 12 | . . . . 11 32 12 . . . . . . . . . . . 31 Level 2 18 | . . . . 9 . 81 . . . . . . . . . . . . Level 3 . | . . . . . . . . . . . . . . . . . . . Level 4 . | . . . . . . . . . . . . . . . . . . . Level 5 . | . . . . . . . . . . . . . . . . . . . High Security . | . . . . . . . . . . . . . . . . . . . Max Security . | . . . . . . . . . . . . . . . . . . . Peak Influence 656 | 10 45 . . 512 218 656 . . . . 30 . 182 . . . . 386 Initial 178 | . . . . . 178 130 . . . . 7 . . . . . . 45 Average 178 | 1 14 . . 141 189 505 . . . . 3 . 32 . . . . 164 Influence Increases 4733 | 20 45 . . 1131 78 1112 . 66 . 175 131 . 319 140 230 27 362 897 Destroy 0b10 Robot/C 1680 | . . . . 480 . 420 . 20 . 60 . . 60 . . 20 240 380 Destroy 0b10 Robot/NC 195 | 20 . . . 45 . 45 . 15 . 15 . . 20 5 5 . . 25 Destroy Leader 316 | . . . . 96 . 78 . . . 10 . . 10 . . . 30 92 Allied During Kill 361 | . . . . . . 291 . 1 . . . . . . . 7 62 . Successful Hack 343 | . . . . 105 . 75 . . . . 32 . 55 . . . . 76 Disable Machine 105 | . . . . 75 . 15 . . . . . . . . . . . 15 Destroy Structure 758 | . . . . 270 78 68 . . . . 24 . 84 . . . . 234 Partial Spotted 195 | . . . . 15 . 90 . . . . 45 . 30 . . . . 15 Lose Combat Pursuer 780 | . 45 . . 45 . 30 . 30 . 90 30 . 60 135 225 . 30 60 Influence Decreases 4573 | 20 40 5 . 622 401 704 391 269 . 162 144 . 183 261 245 27 294 805 Entered New Map 735 | . . 3 . . 331 56 221 40 . . 6 . . 51 4 . . 23 Time Decay 2787 | 20 20 2 . 392 70 458 160 209 . 115 138 . 151 190 211 7 204 440 Lost Part 489 | . 20 . . 40 . 30 . 10 . 7 . . 10 20 20 . . 332 Lost Ally 412 | . . . . 40 . 160 10 10 . 40 . . 22 . 10 20 90 10 Purge Threat 150 | . . . . 150 . . . . . . . . . . . . . . Squads Dispatched 34 | . . . . 11 . 8 . . . . 6 . 3 . . . . 6 Investigation 12 | . . . . 5 . 3 . . . . 1 . 2 . . . . 1 Extermination 11 | . . . . 3 . 2 . . . . 2 . 1 . . . . 3 Reinforcement 10 | . . . . 3 . 2 . . . . 3 . . . . . . 2 Assault 1 | . . . . . . 1 . . . . . . . . . . . . Garrison . | . . . . . . . . . . . . . . . . . . . Intercept . | . . . . . . . . . . . . . . . . . . . Searches Triggered . | . . . . . . . . . . . . . . . . . . . Construction Impeded 1 | . . . . . . . . . . . . . . . . . . 1 Haulers Reinforced 2 | . . . . 1 . 1 . . . . . . . . . . . . Active Scanning Responses . | . . . . . . . . . . . . . . . . . . . Cargo Convoy Interrupts . | . . . . . . . . . . . . . . . . . . . Stealth | -11 -10 -10 -7 -5 -5 -5 -5 -5 -5 -4 -4 -4 -4 -4 -4 -4 -3 -3 --------- Run | Yrd Mat Sub Scr Fac Was Fac Upp Upp Zhi Pro Fac Was Fac Upp Upp War Pro Res Distress Signals 16 | . 1 . . 1 . 6 . . . . 2 . 1 . . 1 . 4 Communications Jammed 12 | . . . . . . . . . . . . . 3 . . . . 9 Distress Signals 12 | . . . . . . . . . . . . . 3 . . . . 9 Times Spotted 200 | . 5 8 . 24 5 29 . 7 . 11 23 . 12 12 7 . 12 45 Peak Tracking Total 9 | . 5 2 . 6 5 7 . 4 . 5 8 . 8 3 3 . 5 9 Tactical Retreats 54 | . 1 1 . 2 1 6 . 3 . 4 6 . 3 9 7 . 2 9 ECM-based Alert Blocks 40 | . . . . . . 6 . 1 . . 16 . 1 . . . . 16 Traps | -11 -10 -10 -7 -5 -5 -5 -5 -5 -5 -4 -4 -4 -4 -4 -4 -4 -3 -3 ------- Run | Yrd Mat Sub Scr Fac Was Fac Upp Upp Zhi Pro Fac Was Fac Upp Upp War Pro Res Traps Triggered 11 | . . . . 4 . 1 . . . . 5 . 1 . . . . . Indirectly . | . . . . . . . . . . . . . . . . . . . Trap Hack Attempts . | . . . . . . . . . . . . . . . . . . . Triggered . | . . . . . . . . . . . . . . . . . . . Disarmed . | . . . . . . . . . . . . . . . . . . . Reprogrammed . | . . . . . . . . . . . . . . . . . . . Reused 14 | . . . . . . . . 2 . 4 . . . 4 4 . . . Traps Extracted 7 | . . . . . . . . . . 3 . . . 4 . . . . Installed 20 | . . . . . . . . 5 . 6 . . . 5 4 . . . Triggered 14 | . . . . . . . . 2 . 4 . . . 4 4 . . . Most Traps Carried 10 | . . . 3 3 3 3 3 10 10 10 7 7 7 9 9 7 2 2 Machines | -11 -10 -10 -7 -5 -5 -5 -5 -5 -5 -4 -4 -4 -4 -4 -4 -4 -3 -3 ---------- Run | Yrd Mat Sub Scr Fac Was Fac Upp Upp Zhi Pro Fac Was Fac Upp Upp War Pro Res Machines Disabled 9 | . . . . 5 . 1 . . . . . . . . 1 1 . 1 Max in Single Turn 1 | . . . . 1 . . . . . . . . . . 1 1 . 1 Garrison Access 4 | . . . . 2 . 1 . . . . . . . . . . . 1 Machines Repaired . | . . . . . . . . . . . . . . . . . . . Machines Dismantled 1 | . . . . . . . . . . . . . . . . 1 . . Machines Sabotaged . | . . . . . . . . . . . . . . . . . . . Overloaded Fab Kills . | . . . . . . . . . . . . . . . . . . . Hacking | -11 -10 -10 -7 -5 -5 -5 -5 -5 -5 -4 -4 -4 -4 -4 -4 -4 -3 -3 --------- Run | Yrd Mat Sub Scr Fac Was Fac Upp Upp Zhi Pro Fac Was Fac Upp Upp War Pro Res Machines Accessed 69 | . . . 6 22 . 11 . . 5 . 6 . 8 . 1 4 . 6 Terminals 25 | . . . . 10 . 4 . . . . 3 . 4 . . . . 4 Fabricators 6 | . . . . 4 . 1 . . . . . . 1 . . . . . Repair Stations 2 | . . . . . . . . . . . . . 1 . . . . 1 Recycling Units 9 | . . . . 4 . 2 . . . . 2 . 1 . . . . . Scanalyzers 5 | . . . . 2 . 2 . . . . . . 1 . . . . . Garrison Access 6 | . . . . 2 . 2 . . . . 1 . . . . . . 1 Total Hacks 171 | . . . 20 56 . 24 . . 18 . 10 . 17 . 1 9 . 16 Successful 121 | . . . 20 29 . 14 . . 18 . 5 . 15 . 1 9 . 10 Failed 49 | . . . . 27 . 10 . . . . 5 . 1 . . . . 6 Catastrophic 8 | . . . . 5 . 2 . . . . . . . . . . . 1 Database Lockouts 1 | . . . . . . . . . . . . . 1 . . . . . Manual 64 | . . . . 32 . 12 . . . . 6 . 5 . . . . 9 Terminals 68 | . . . . 29 . 12 . . . . 6 . 10 . . . . 11 Fabricators 17 | . . . . 13 . 3 . . . . . . 1 . . . . . Repair Stations 5 | . . . . . . . . . . . . . 1 . . . . 4 Recycling Units 15 | . . . . 7 . 4 . . . . 3 . 1 . . . . . Scanalyzers 11 | . . . . 4 . 3 . . . . . . 4 . . . . . Garrison Access 7 | . . . . 3 . 2 . . . . 1 . . . . . . 1 Terminal Hacks 76 | . . . 20 9 . 4 . . 18 . 2 . 7 . 1 9 . 6 Record 26 | . . . 18 . . . . . 6 . . . . . 1 1 . . Part Schematic 5 | . . . . . . . . . 4 . . . 1 . . . . . Robot Analysis 5 | . . . . . . . . . 4 . 1 . . . . . . . Prototype ID Bank 12 | . . . . 2 . . . . 4 . . . . . . 6 . . Open Door 4 | . . . 1 . . . . . . . . . 1 . . 2 . . Branch Access Points 5 | . . . . 1 . 1 . . . . 1 . 1 . . . . 1 Machine Index 1 | . . . . . . 1 . . . . . . . . . . . . Alert Level 2 | . . . . 1 . 1 . . . . . . . . . . . . Unreport Threat 1 | . . . . 1 . . . . . . . . . . . . . . Locate Traps 3 | . . . . 1 . 1 . . . . . . 1 . . . . . Surveillance Status 1 | . . . . . . . . . . . . . . . . . . 1 Transport Status 1 | . . . . 1 . . . . . . . . . . . . . . Hauler Manifests 3 | . . . . 1 . . . . . . . . 1 . . . . 1 Registered Components 1 | . . . . . . . . . . . . . . . . . . 1 Registered Prototypes 3 | . . . . 1 . . . . . . . . 1 . . . . 1 Zone Layout 2 | . . . . . . . . . . . . . 1 . . . . 1 Proto ID Catalog 1 | . . . 1 . . . . . . . . . . . . . . . Fabricator Hacks 3 | . . . . 1 . 1 . . . . . . 1 . . . . . Network Status 3 | . . . . 1 . 1 . . . . . . 1 . . . . . Repair Station Hacks . | . . . . . . . . . . . . . . . . . . . Recycling Unit Hacks . | . . . . . . . . . . . . . . . . . . . Scanalyzer 8 | . . . . 3 . 2 . . . . . . 3 . . . . . Insert Component 4 | . . . . 2 . 1 . . . . . . 1 . . . . . Analyze 1 | . . . . . . . . . . . . . 1 . . . . . Retrieve Study 3 | . . . . 1 . 1 . . . . . . 1 . . . . . Garrison Access Hacks 4 | . . . . 2 . 1 . . . . . . . . . . . 1 Seal Access 4 | . . . . 2 . 1 . . . . . . . . . . . 1 Unauthorized Hacks 30 | . . . . 14 . 6 . . . . 3 . 4 . . . . 3 Terminals 14 | . . . . 4 . 3 . . . . 2 . 2 . . . . 3 Track 1 | . . . . 1 . . . . . . . . . . . . . . Assimilate 2 | . . . . . . . . . . . . . 1 . . . . 1 Botnet 6 | . . . . 3 . 1 . . . . 1 . . . . . . 1 Operators 4 | . . . . . . 1 . . . . 1 . 1 . . . . 1 Skim 1 | . . . . . . 1 . . . . . . . . . . . . Fabricators 7 | . . . . 6 . 1 . . . . . . . . . . . . Report 1 | . . . . 1 . . . . . . . . . . . . . . Liberate 2 | . . . . 2 . . . . . . . . . . . . . . Fabnet 2 | . . . . 2 . . . . . . . . . . . . . . Haulers 2 | . . . . 1 . 1 . . . . . . . . . . . . Repair Stations 1 | . . . . . . . . . . . . . 1 . . . . . Patch 1 | . . . . . . . . . . . . . 1 . . . . . Recycling Units 8 | . . . . 4 . 2 . . . . 1 . 1 . . . . . Fedlink 8 | . . . . 4 . 2 . . . . 1 . 1 . . . . . Scanalyzers . | . . . . . . . . . . . . . . . . . . . Garrison Access . | . . . . . . . . . . . . . . . . . . . Data Cores Recovered 1 | . . . . . . 1 . . . . . . . . . . . . Used 1 | . . . . . . 1 . . . . . . . . . . . . Hacking Detections 38 | . . . . 18 . 8 . . . . 5 . 5 . . . . 2 Full Trace Events 1 | . . . . . . . . . . . . . . . . . . 1 Feedback Events . | . . . . . . . . . . . . . . . . . . . Feedback Blocked . | . . . . . . . . . . . . . . . . . . . Robot Schematics Acquired . | . . . . . . . . . . . . . . . . . . . Robots Built . | . . . . . . . . . . . . . . . . . . . Authchips . | . . . . . . . . . . . . . . . . . . . Time . | . . . . . . . . . . . . . . . . . . . Total Robot Build Rating . | . . . . . . . . . . . . . . . . . . . Part Schematics Acquired 6 | . . . . . . . . . 4 . . . 2 . . . . . Parts Built . | . . . . . . . . . . . . . . . . . . . Authchips . | . . . . . . . . . . . . . . . . . . . Time . | . . . . . . . . . . . . . . . . . . . Total Part Build Rating . | . . . . . . . . . . . . . . . . . . . Part Studies Acquired 3 | . . . . 1 . 1 . . . . . . 1 . . . . . Parts Repaired . | . . . . . . . . . . . . . . . . . . . Time . | . . . . . . . . . . . . . . . . . . . Parts Recycled . | . . . . . . . . . . . . . . . . . . . Recycled Matter . | . . . . . . . . . . . . . . . . . . . Retrieved Matter . | . . . . . . . . . . . . . . . . . . . Retrieved Components . | . . . . . . . . . . . . . . . . . . . Parts Scanalyzed 1 | . . . . . . . . . . . . . 1 . . . . . Part Schematics Acquired 1 | . . . . . . . . . . . . . 1 . . . . . Parts Damaged . | . . . . . . . . . . . . . . . . . . . Bothacking | -11 -10 -10 -7 -5 -5 -5 -5 -5 -5 -4 -4 -4 -4 -4 -4 -4 -3 -3 ------------ Run | Yrd Mat Sub Scr Fac Was Fac Upp Upp Zhi Pro Fac Was Fac Upp Upp War Pro Res Used RIF Installer . | . . . . . . . . . . . . . . . . . . . Robots Hacked 9 | . . . . 1 . . . . . 2 2 . 1 . . 2 1 . Non-combat 2 | . . . . 1 . . . . . . 1 . . . . . . . Combat 7 | . . . . . . . . . . 2 1 . 1 . . 2 1 . Robot Hacks Applied 2 | . . . . 1 . . . . . . 1 . . . . . . . find_chute 2 | . . . . 1 . . . . . . 1 . . . . . . . Relay Couplers Released . | . . . . . . . . . . . . . . . . . . . Fabnet Peak Effective % 6 | . . . . . . . . . . 6 6 6 6 6 6 6 2 2 Autooverrided 7 | . . . . . . . . . . 2 1 . 1 . . 2 1 . Robots Rewired 9 | . . . . . . . . 1 . 1 1 . . . 1 5 . . Allies Hacked 2 | . . . . . . 2 . . . . . . . . . . . . Hacks Repelled . | . . . . . . . . . . . . . . . . . . . Allies | -11 -10 -10 -7 -5 -5 -5 -5 -5 -5 -4 -4 -4 -4 -4 -4 -4 -3 -3 -------- Run | Yrd Mat Sub Scr Fac Was Fac Upp Upp Zhi Pro Fac Was Fac Upp Upp War Pro Res Total Allies 38 | . . . . 2 18 . . 1 . 3 2 . 2 . 1 7 1 1 Largest Group 18 | . . . . 2 18 14 . 1 . 2 1 . 1 . 1 6 5 1 Highest-Rated Group 656 | . . . . 98 656 556 . 29 . 49 54 . 26 . 55 320 264 10 Highest-Rated Ally 64 | . . . . 49 50 50 . 29 . 49 54 . 26 . 55 64 64 10 Initial UFD Resources 81 | . . . . 39 57 57 61 61 61 64 64 74 74 78 78 78 81 81 Total Orders 25 | . . . . . . 1 6 . . 1 . . . . 2 9 6 . STAY 12 | . . . . . . . 1 . . 1 . . . . 1 5 4 . FOLLOW 7 | . . . . . . . . . . . . . . . 1 4 2 . EXPLORE 4 | . . . . . . 1 3 . . . . . . . . . . . RETURN 2 | . . . . . . . 2 . . . . . . . . . . . Ally Attacks 294 | . . . . 17 98 109 . 4 . 5 3 . . . . 3 55 . Total Damage 8512 | . . . . 623 3870 2425 . 79 . 67 72 . . . . 87 1289 . Kills 46 | . . . . 6 10 20 . . . 1 . . . . . 1 8 . Allies Corrupted 4 | . . . . . . 4 . . . . . . . . . . . . Allies Melted 1 | . . . . . . . . . . . 1 . . . . . . . Intel | -11 -10 -10 -7 -5 -5 -5 -5 -5 -5 -4 -4 -4 -4 -4 -4 -4 -3 -3 ------- Run | Yrd Mat Sub Scr Fac Was Fac Upp Upp Zhi Pro Fac Was Fac Upp Upp War Pro Res Active Infowar (turns) 15260 | 93 86 2210 1316 1708 153 1145 317 814 89 1053 794 183 529 1265 949 774 540 1242 Optics 770 | . . . . 514 . . . . . . . . . . . . . 256 Sensors 8402 | . . . . 1194 153 1145 317 814 89 1048 794 183 529 1265 615 . . 256 Terrain 2979 | . . . . . . . . . . . . . . 806 434 774 540 425 Seismic 5463 | 93 86 2210 1316 326 . . . . . . . . . . . . 489 943 Cloaking 1268 | . . . . 74 153 522 . . 24 495 . . . . . . . . Jamming 1504 | . . . . . . . . . . . . . 414 . . . 47 1043 ECM 1018 | . . . . . . 141 . 10 3 1 161 14 87 43 . . . 558 Robot Analysis Total 5 | . . . . . . . . . 4 . 1 . . . . . . . Derelict Logs Recovered 12 | . . . 5 . . . 2 1 . 1 . . . 1 2 . . . Drone Launches 4 | . . . . . . 3 . 1 . . . . . . . . . . Drone Recoveries 1 | . . . . . . . 1 . . . . . . . . . . . Exploration | -11 -10 -10 -7 -5 -5 -5 -5 -5 -5 -4 -4 -4 -4 -4 -4 -4 -3 -3 ------------- Run | Yrd Mat Sub Scr Fac Was Fac Upp Upp Zhi Pro Fac Was Fac Upp Upp War Pro Res Turns Passed 17459 | 151 86 2241 3191 1781 153 1145 322 814 89 1058 794 183 529 1417 949 774 540 1242 Spaces Moved 17903 | 74 31 1305 1876 1843 215 1497 487 1224 145 1414 1167 205 733 1764 1174 929 896 924 Core 2 | 2 . . . . . . . . . . . . . . . . . . Treads 549 | 72 31 446 . . . . . . . . . . . . . . . . Legs 37 | . . . . . . . . . . . . . . . . . . 37 Wheels 3147 | . . 859 1876 412 . . . . . . . . . . . . . . Hover 14168 | . . . . 1431 215 1497 487 1224 145 1414 1167 205 733 1764 1174 929 896 887 Flight . | . . . . . . . . . . . . . . . . . . . Fastest Speed 37 | 50 160 115 115 37 50 41 45 45 49 49 51 57 57 55 51 47 46 44 Average Speed 73 | 157 160 138 167 68 50 48 45 49 49 50 53 57 57 58 56 49 46 57 Slowest Speed 240 | 160 160 240 210 176 50 112 45 50 50 55 111 57 57 61 121 55 47 151 Overloaded Moves . | . . . . . . . . . . . . . . . . . . . Propulsion Burnouts . | . . . . . . . . . . . . . . . . . . . Robots Hopped . | . . . . . . . . . . . . . . . . . . . Potential Cave-ins 9 | . . . . . . . . . . . . . . . . . . 9 Cave-ins Triggered . | . . . . . . . . . . . . . . . . . . . Teleports 1 | . . . . . . . . . . . . . . . . . . 1 Exploration Rate (%) 61 | 5 14 54 91 51 89 41 92 84 60 82 26 94 17 83 96 95 78 19 Regions Visited 18 Branch Regions 10 Pre-discovered Areas 8 | . . . 1 1 . . 1 1 3 . . . . . 1 . . . Known Exits Taken 7 | . . . . . . 1 1 1 1 1 . . 1 . . . 1 . Unknown Exits Taken 7 | 1 1 1 1 . . . . . . . . . . 1 1 1 . . Scrap Searched 24 | . . 2 3 . . . 3 3 . 2 . . . 3 4 . 4 . Spaces Dug 131 | . . 3 . 24 . 18 1 2 . 2 12 . 24 6 8 . . 31 Terrain Destroyed 568 | . . 8 . 202 . 27 1 2 . 2 12 . 42 6 8 . 55 203 Melee 115 | . . . . 24 . 18 1 2 . 2 12 . 24 6 8 . . 18 Projectile 28 | . . 8 . . . . . . . . . . . . . . . 20 AOE 425 | . . . . 178 . 9 . . . . . . 18 . . . 55 165 Terrain Rammed . | . . . . . . . . . . . . . . . . . . . Walls Destroyed . | . . . . . . . . . . . . . . . . . . . Machines Disabled . | . . . . . . . . . . . . . . . . . . . Actions | -11 -10 -10 -7 -5 -5 -5 -5 -5 -5 -4 -4 -4 -4 -4 -4 -4 -3 -3 --------- Run | Yrd Mat Sub Scr Fac Was Fac Upp Upp Zhi Pro Fac Was Fac Upp Upp War Pro Res Total 21461 | 95 53 1530 1932 2259 259 1848 588 1394 159 1721 1307 243 804 2138 1438 1240 1021 1432 Wait 2387 | 4 9 69 . 172 43 256 91 118 . 244 92 18 22 349 235 249 115 301 Move 17887 | 73 30 1304 1875 1843 214 1496 486 1223 144 1413 1167 204 732 1763 1173 928 895 924 Hop . | . . . . . . . . . . . . . . . . . . . Pick Up 153 | 6 2 25 35 36 1 7 1 3 4 4 3 . 4 2 2 9 2 7 Fast Attach 81 | 7 . . 3 12 . 10 3 3 1 6 3 1 3 1 4 3 1 20 Attach 68 | . 1 5 . 27 . 2 . 2 2 2 3 . 2 2 . 2 2 16 Detach 48 | . . . 4 16 . 3 . 4 1 1 1 . 3 1 . 3 2 9 Swap 90 | . 1 15 3 14 1 9 1 5 5 8 4 . 4 3 1 2 1 13 Drop 142 | . 1 14 12 48 . 14 5 5 2 9 2 1 7 2 1 10 2 7 Fire 143 | 5 7 95 . 7 . 1 . . . . . . 1 . . . 1 26 Melee 377 | . . 3 . 79 . 50 1 25 . 22 18 19 26 10 16 . . 108 Ram . | . . . . . . . . . . . . . . . . . . . Kick 1 | . . . . . . . . . . . . . . . . . . 1 Crush 2 | . 2 . . . . . . . . . . . . . . . . . Escape Stasis 18 | . . . . 5 . . . . . . 13 . . . . . . . Rewire 36 | . . . . . . . . 1 . 6 1 . . . 2 26 . . Trap 20 | . . . . . . . . 5 . 6 . . . 5 4 . . . Miscellaneous 8 | . . . . . . . . . . . . . . . . 8 . . Route ------- -11/Scrapyard -10/Materials -10/Subcaves (discovered 2 exits: [*Mat] / *Scr) -7/Scraptown (discovered 2 exits: *Fac x2) -5/Factory (discovered 5 exits: *Fac x3 / *Upp x2) -5/Waste -5/Factory (discovered 4 exits: *Fac x2 / *Upp x2) -5/Upper Caves -5/Upper Caves (discovered 2 exits: *Fac / *Zhi) -5/Zhirov -4/Proximity Caves -4/Factory (discovered 5 exits: *Res / Upp x2 / Ext x2) -4/Waste -4/Factory (discovered 5 exits: *Res / *Upp x2 / *Ext x2) -4/Upper Caves -4/Upper Caves (discovered 2 exits: *Res / *War) -4/Warlord -3/Proximity Caves -3/Research (discovered 3 exits: Arm / Tes x2) History --------- Turn | Location | Event 6 | -11/Scrapyard | Discovered new exit (range 15) 152 | -11/Scrapyard | Entered Materials 231 | -10/Materials | Discovered new exit (range 6) 238 | -10/Materials | Entered Subcaves 239 | -10/Subcaves | Approached by a straggling Scientist 322 | -10/Subcaves | Build established: Mutant 337 | -10/Subcaves | A swath of the cavern ceiling suddenly collapsed 1150 | -10/Subcaves | Core integrity fell below 50% 1411 | -10/Subcaves | Shifting Twisted Machinery released Sub. Power Source 1413 | -10/Subcaves | Shifting Twisted Machinery released Sub. Shrapnel Launcher 1438 | -10/Subcaves | Discovered new exit (range 9) 1468 | -10/Subcaves | Disturbed a concealed Subdweller 1993 | -10/Subcaves | Build established: Scavenger-Mutant 2173 | -10/Subcaves | Core integrity fell below 20% 2377 | -10/Subcaves | Ambushed by Subdweller buried in earth 2479 | -10/Subcaves | Entered Scraptown 2693 | -7/Scraptown | Discovered new exit (range 11) 2752 | -7/Scraptown | Scanned Subdweller tech in exchange for log data 2758 | -7/Scraptown | Learned 12 Factory zone layouts 2759 | -7/Scraptown | Learned Factory emergency access door positions 2761 | -7/Scraptown | Learned Research interactive machine intel 2762 | -7/Scraptown | Learned location of Zion (-6) 2763 | -7/Scraptown | Learned Research emergency access door positions 2791 | -7/Scraptown | Visited Shadow of the Wyrm 2807 | -7/Scraptown | Visited Red Mages 2863 | -7/Scraptown | Visited Cyclists 3063 | -7/Scraptown | Build established: Mutant 3218 | -7/Scraptown | Visited TADAMA 3239 | -7/Scraptown | Visited UFD Registry 3239 | -7/Scraptown | Registered with UFD as "Flaksys" 3346 | -7/Scraptown | Delivered Scrap Shield to a Scientist 3464 | -7/Scraptown | Visited Scrap Suit Storage 3482 | -7/Scraptown | Visited Sword Containment 3500 | -7/Scraptown | Visited Science Guys 3565 | -7/Scraptown | Visited Curators Association 3609 | -7/Scraptown | Visited Infowarlord's Domain 3642 | -7/Scraptown | Visited Research Penetration Think Tank 3672 | -7/Scraptown | Visited A0-MCA Data Center 3680 | -7/Scraptown | Given a C rating by A0-MCA 3685 | -7/Scraptown | Found A0-MCA's Component Scanner 3720 | -7/Scraptown | Visited Scrapoid Pod Storage 3728 | -7/Scraptown | Found Scrapoid Pod 3749 | -7/Scraptown | Visited Science Testing Area 4086 | -7/Scraptown | Build established: Hauler-Mutant 4780 | -7/Scraptown | Visited Symbiants 4830 | -7/Scraptown | Visited Fellowship of the Rings 4902 | -7/Scraptown | Entered Cyclist Reading Room 5174 | -7/Scraptown | Found Exp. Terrain Scan Processor 5433 | -7/Scraptown | Found Prototype Slashing Weapon 5433 | -7/Scraptown | Identified Companion Sword 5565 | -7/Scraptown | Met Optimus 5565 | -7/Scraptown | Accepted into 0bPrime 5661 | -7/Scraptown | Discovered new exit (range 5) 5670 | -7/Scraptown | Entered Factory 5670 | -5/Factory | Evolved 10 slots: Power x1, Propulsion x5, Utility x4 5794 | -5/Factory | Found Prototype Processor 5797 | -5/Factory | Found Prototype Processor 5799 | -5/Factory | Found Prototype Processor 5899 | -5/Factory | Identified Exp. Targeting Computer (x3) 6050 | -5/Factory | Lost 3 parts (2n1u) 6525 | -5/Factory | Identified exit to Upper Caves 6576 | -5/Factory | Loaded intel: 8 recycling unit locations 6612 | -5/Factory | Discovered new exit (range 5) 6746 | -5/Factory | Build established: Scavenger-Mutant 6894 | -5/Factory | Found Prototype Launcher 6905 | -5/Factory | Discovered new exit (range 4) 6935 | -5/Factory | Learned location of Protoforge (-2) 7081 | -5/Factory | Identified Scatter Rocket Array 7276 | -5/Factory | Build established: Mutant 7364 | -5/Factory | Discovered new exit (range 13) 7451 | -5/Factory | Manually triggered Chute Trap 7451 | -5/Factory | Sucked down chute 7451 | -5/Factory | Entered Waste 7456 | -5/Waste | Spotted C-40 Crusher 7467 | -5/Waste | Spotted C-40 Crusher 7469 | -5/Waste | Spotted C-40 Crusher 7475 | -5/Waste | Spotted C-40 Crusher 7477 | -5/Waste | Spotted C-40 Crusher 7486 | -5/Waste | Spotted C-40 Crusher 7504 | -5/Waste | Warlord forces began an assault 7511 | -5/Waste | Allies destroyed C-40 Crusher 7512 | -5/Waste | Allies destroyed C-40 Crusher 7522 | -5/Waste | Allies destroyed C-40 Crusher 7526 | -5/Waste | Allies destroyed C-40 Crusher 7532 | -5/Waste | Allies destroyed C-40 Crusher 7552 | -5/Waste | Lost 4 allies 7561 | -5/Waste | Discovered new exit (range 15) 7583 | -5/Waste | Identified exit to Factory 7604 | -5/Waste | Entered Factory 7604 | -5/Factory | Accompanied by 14 allies 7770 | -5/Factory | Discovered new exit (range 6) 7904 | -5/Factory | First assault squad dispatched 8037 | -5/Factory | Lost 5 allies 8120 | -5/Factory | Loaded intel: 8 recycling unit locations 8278 | -5/Factory | System corruption reached 10% 8340 | -5/Factory | Discovered new exit (range 5) 8411 | -5/Factory | Identified exit to Factory 8749 | -5/Factory | Entered Upper Caves 8749 | -5/Upper Caves | Accompanied by 2 allies 8751 | -5/Upper Caves | UFD Scientist delivered a prototype 8752 | -5/Upper Caves | Found Prototype Protection 8752 | -5/Upper Caves | Identified Enh. Scrap Shield 8818 | -5/Upper Caves | Identified exit to Upper Caves 8902 | -5/Upper Caves | Entered a destroyed Warlord outpost 8942 | -5/Upper Caves | Learned location of Warlord (-4) 9071 | -5/Upper Caves | Entered another Upper Caves area 9074 | -5/Upper Caves | Attracted the attention of an 0b10 checkpoint 9074 | -5/Upper Caves | Discovered exit to Factory (range 7) 9079 | -5/Upper Caves | Spotted B-75 Beast 9192 | -5/Upper Caves | Encountered a Warlord checkpoint 9499 | -5/Upper Caves | Discovered new exit (range 10) 9541 | -5/Upper Caves | Identified exit to Zhirov 9885 | -5/Upper Caves | Entered Zhirov 9885 | -5/Zhirov | Discovered new exit (range 3) 9895 | -5/Zhirov | Met Zhirov 9904 | -5/Zhirov | Learned location of Quarantine (-2) 9904 | -5/Zhirov | Learned location of Testing (-3) 9904 | -5/Zhirov | Learned location of Command (-1) 9908 | -5/Zhirov | Zhirov requested help retrieving the SGEMP Prototype 9920 | -5/Zhirov | Found Alien Artifact 9920 | -5/Zhirov | Identified Integrated Reactor 9920 | -5/Zhirov | Installed Integrated Reactor, increased core energy generation (+10) 9932 | -5/Zhirov | Found Alien Artifact 9973 | -5/Zhirov | Identified exit to Proximity Caves 9974 | -5/Zhirov | Entered Proximity Caves 10047 | -4/Proximity Caves | Build established: Trapper-Mutant 10507 | -4/Proximity Caves | Attracted the attention of an 0b10 checkpoint 10542 | -4/Proximity Caves | Learned location of 1 exit from Research 10730 | -4/Proximity Caves | Core integrity fell below 50% 10981 | -4/Proximity Caves | Discovered exit to Factory (range 5) 11032 | -4/Proximity Caves | Entered Factory 11032 | -4/Factory | Evolved 2 slots: Utility x2 11037 | -4/Factory | Identified exit to Upper Caves 11037 | -4/Factory | Identified exit to Extension 11203 | -4/Factory | Loaded intel: 8 recycling unit locations 11387 | -4/Factory | Spotted B-86 Titan 11458 | -4/Factory | Local machine network offline 11512 | -4/Factory | Discovered new exit (range 7) 11826 | -4/Factory | Manually triggered Chute Trap 11826 | -4/Factory | Sucked down chute 11826 | -4/Factory | Entered Waste 11826 | -4/Waste | The area was eerily silent 11999 | -4/Waste | Discovered new exit (range 12) 12008 | -4/Waste | Identified exit to Factory 12009 | -4/Waste | Entered Factory 12104 | -4/Factory | Central database locked down 12231 | -4/Factory | Discovered new exit (range 13) 12266 | -4/Factory | Identified exit to Research 12294 | -4/Factory | Loaded intel: 8 recycling unit locations 12298 | -4/Factory | Build established: Hacker-Mutant 12538 | -4/Factory | Entered Upper Caves 12751 | -4/Upper Caves | Encountered a Warlord checkpoint 12876 | -4/Upper Caves | Learned Research trap positions 13255 | -4/Upper Caves | Attracted the attention of an 0b10 checkpoint 13593 | -4/Upper Caves | Spotted B-86 Titan 13931 | -4/Upper Caves | Discovered new exit (range 16) 13955 | -4/Upper Caves | Entered another Upper Caves area 13985 | -4/Upper Caves | Discovered exit to Research (range 8) 14407 | -4/Upper Caves | Attracted the attention of an 0b10 checkpoint 14761 | -4/Upper Caves | Found Alien Artifact 14800 | -4/Upper Caves | Learned Research trap positions 14816 | -4/Upper Caves | Discovered new exit (range 14) 14904 | -4/Upper Caves | Entered Warlord 14929 | -4/Warlord | Discovered new exit (range 15) 14956 | -4/Warlord | System corruption cleaned by Quarantine Array 15128 | -4/Warlord | Found Vortex Chain Reactor 15138 | -4/Warlord | Found Exp. Phase Shifter 15145 | -4/Warlord | Found Ghost Barrier 15213 | -4/Warlord | Warlord's base attacked by MAIN.C 15248 | -4/Warlord | Found Vortex Driver 15282 | -4/Warlord | Found Signal Generator 15323 | -4/Warlord | Rebuked by Warlord 15563 | -4/Warlord | Warlord forces counterattacked 15594 | -4/Warlord | Opened side exit 15678 | -4/Warlord | Entered Proximity Caves 15678 | -3/Proximity Caves | Accompanied by 5 allies 15680 | -3/Proximity Caves | Lost 7 allies 15937 | -3/Proximity Caves | Spotted B-86 Titan 16070 | -3/Proximity Caves | Lost 6 allies 16209 | -3/Proximity Caves | Discovered exit to Research (range 10) 16218 | -3/Proximity Caves | Entered Research 16218 | -3/Research | Evolved 2 slots: Utility x2 16219 | -3/Research | Identified exit to Armory 16220 | -3/Research | Loaded intel: 80 trap records 16222 | -3/Research | Loaded intel: 44 interactive machine locations 16229 | -3/Research | Found Adv. EM Shield 16233 | -3/Research | Watched by a mysterious "MATRIX" hacker. 16284 | -3/Research | Identified exit to Testing 16991 | -3/Research | Lost 4 parts (3n1u) 17081 | -3/Research | Lost 3 parts (1n2u) 17235 | -3/Research | System corruption reached 10% 17292 | -3/Research | Identified Transdimensional Reconstructor 17292 | -3/Research | Warped through subspace 17308 | -3/Research | Spotted B-86 Titan 17366 | -3/Research | Lost 12 parts (1p5n6u) 17395 | -3/Research | Core integrity fell below 50% 17460 | -3/Research | Self-destructed Last Messages --------------- 17453_ K-01 Serf collects debris. 17454_ Vortex penetrates P-80 Master. 17454_ P-80 Master suffers critical hit (Sunder). 17454_ P-80 Master Adv. Heat Sink ripped off. 17454_ P-80 Master destroyed. 17456_ Vortex penetrates Earth. 17456_ U-05 Engineer builds a Wall. 17456_ M-36 Artificer repairs K-01 Serf Lgt. Ion Engine. 17456_ K-01 Serf collects debris. 17456_ Vortex Driver destroyed. 17457_ R-10 Processor collects Imp. Antigrav System. 17459_ Dropped Lrg. Storage Unit. 17459_ Acquired 10 matter. 17459_ K-01 Serf collects debris. 17459_ Adv. Hacking Suite destroyed. 17460_ R-10 Processor collects Exp. Phase Shifter. Map ----- +----------------------------------------------------+ | #################### """ ################## | | ###### """ ################## | | ###### """ ################## | | ? ###### """ ################## | | ?? ###### """ ################## | | ???########### ###### ################## | | ????########## ###### "################# | | ??##?######### ##########+####!################ | | ????########## ### = = % ##!############### | | ??##?######### ^^ =% %= "##%############## | | ???########### ^ ^ == * ####=############# | | ???# # # ######### | | ???? # ^ ! !!"%#! # ######### | | ????? # ^*% ! " # # """ ######### | | ???# # = ### # """ ######### | | ???? ? + ### + """ ######### | | ???? " " # ### # """ ######### | | ???? ?""R"" # " ### # """ ######### | | ???#? """"" # "" ### # ######### | | ????########## "############ ### ######### | | ????#?######## ############# #################### | | ??????####################### #### # # ######## | | ????#?#####?######### =!### #### # # ####### | | ??????############### ""=k### #### #### ######### | | ???????########## ;p uu|!R!!######## = #### | | ????????###?######### !@###### + # # | | ????????############# u k[###### ##### # # | | ?????????############## ######## # ### # # | | ?????????############## ######## ## ## #### | | ?????????###?##########+######## ### # # | | ?????????#?#?###### # # # #### | | ???????????######## # # # # # | | ????????????##??### ] # # # # ## | | ????????????#??#### # #########+### | | ??????????????###?# # | | ??????????#???#??## ]] + | | ??????????#???##### ]/ # | | ????????????????### ] + | | | ???????????#??##??# ######## # # | | ???????????#????### # | | ??????????#???###?# [ # | | ???????????##?????# # | | ???????????##?############ ##### | | ??????????###################### """"" # | | ????????##########?######### + """"" # | | ?????####?################## ### """"" # | | ????########################!################# | | ???#########################+#####T ########## | | ?#?################### %! # | | ??#####??#############! # ^ ^ | +----------------------------------------------------+ Best States ------------- Heat Dissipation 65 Coolant Potential 100 Energy Generation 65 Energy Capacity 700 Matter Stores 300 Matter Capacity 600 Sight Range 22 Robot Scan Range 16 Terrain Scan Range 24 Terrain Scan Density 1010 ECM Strength 2 Jamming Range 16 Cloak Strength 4 Armor Coverage 800 Resistance: EM 50 Propulsion Shielding 90 Phase Shifting 20 Evasion (%) 87 Melee Accuracy 13 Recoil Reduction 2 Offensive Hacking 26 Defensive Hacking 20 Trap Extractor Capacity 6 Item Schematics ----------------- Assault Drone Bay | -5/Zhirov | Free Exp. Heat Sink | -5/Zhirov | Free Exp. Optical Array | -5/Zhirov | Free Imp. Arc Thrower | -5/Zhirov | Free Imp. Linear Gravjet | -4/Factory | Hacked Exp. Propulsion Shielding | -4/Factory | Scanalyzed Robot Schematics ------------------ None Fabricated ------------ Nothing Repaired ---------- Nothing Studied --------- Antigrav System | -5/Factory | Hacked Mic. Fission Core | -5/Factory | Hacked Lgt. Antimatter Reactor | -4/Factory | Hacked Alien Tech Used ----------------- Integrated Reactor Transdimensional Reconstructor Achievements -------------- Hulk Smash Challenges ------------ None Game ------ Seed ThrowingSapperKinecellerator Manual? 0 Play Time 04:52:11 Cumulative 419.9 hours Start 2026.03.03 @ 15:56:55 End 2026.03.04 @ 18:03:38 Sessions 17 Manual Loads 0 Difficulty Rogue Special Mode None Game No. 77 Rogue 77 Adventurer 0 Explorer 0 Win Type - Total 14 Types 5/1/5/1/0/0/1/1/0/0 Lore% 80 Gallery% 72 Achievement% 68 Wizard Run 0 Options --------- Layout 1 ASCII 0 Keyboard 1 Movement Vi Keybinds 1 Fullscreen 1 Font 36/Tamsyn Map View 50x40 Zoom Use 0% Tactical HUD 1 Map Filters NONE Filters NONE Steam 1 RUN: b0361c03-61d9-4b22-ac03-5a41e1d0318c